[Event "AUT Bundesliga Women 2021-22"]
[Site "Austria"]
[Date "2022.04.22"]
[Round "8.13"]
[White "Katter, Katharina"]
[Black "Mayrhuber, Nikola"]
[Result "1/2-1/2"]
[ECO "E16"]
[WhiteElo "1991"]
[BlackElo "2110"]
[Annotator "TA"]
[PlyCount "93"]
[EventDate "2021.11.06"]
[EventType "team-tourn"]
[EventCountry "AUT"]
[SourceTitle "playchess.com"]
[Source "ChessBase"]
[SourceQuality "1"]
[TimeControl "40/5400+30:1800+30"]

{[%evp 17,93,45,43,49,46,29,33,34,39,29,77,61,81,41,49,52,43,0,0,0,75,52,63,-16,33,35,35,-53,-46,-44,-31,-56,-65,-62,-59,-63,-59,-92,-74,-74,-63,-102,388,373,333,1,1,1,1,1,2,4,580,64,64,64,64,58,58,59,64,64,66,9,77,24,24,28,32,23,42,0,0,0,0,0,0,0]} 1. d4 {[%emt 0:00:03]} Nf6 {[%emt 0:00:06]} 2. Nf3 {[%emt 0:00:30]} e6 {[%emt 0:00:06]} 3. c4 {[%emt 0:00:06]} Bb4+ {[%emt 0:00:21]} 4. Bd2 {[%emt 0:00:08]} Qe7 {[%emt 0:02:45]} 5. g3 {[%emt 0:00:11]} Nc6 {[%emt 0:01:30]} 6. Nc3 {[%emt 0:02:00]} O-O {[%emt 0:02:22]} 7. Bg2 {[%emt 0:02:51]} d5 {[%emt 0:06:57]} 8. a3 {[%emt 0:10:18]} Bxc3 {[%emt 0:00:29]} 9. Bxc3 {[%emt 0:00:02]} Ne4 {[%emt 0:00:38]} 10. Qc2 {[%emt 0:01:23] E11: Bogo-Indian.} a5 {[%emt 0:10:10]} 11. b3 {[%emt 0:10:35][%cal Bb2b3,Bb3b4][%mdl 32]} Nxc3 {[%emt 0:01:10]} 12. Qxc3 {[%emt 0:00:15] White is slightly better.} Rd8 {[%emt 0:02:37][%cal Oe6e5]} 13. O-O {[%emt 0:00:38] [#]} Ra6 $146 {[%emt 0:12:34]} (13... a4 $11) ({Predecessor:} 13... e5 14. dxe5 d4 15. Qb2 Bg4 16. Rfd1 Bxf3 17. Bxf3 Qxe5 18. Rd3 Rd6 19. Rad1 Rad8 {1-0 (44) Jankovic,A (2564)-Hecht,H (2379) Zadar 2011}) 14. Rfe1 {[%emt 0:09:29]} Qd6 {[%emt 0:20:44]} 15. c5 {[%emt 0:14:31]} Qf8 {[%emt 0:03:21]} 16. b4 {[%emt 0:02:58]} Na7 {[%emt 0:03:33]} 17. e4 {[%emt 0:18:16]} dxe4 {[%emt 0:05:50]} 18. Rxe4 {[%emt 0:00:05]} b6 {[%emt 0:02:11]} (18... axb4 $11 {remains equal.} 19. Qxb4 (19. axb4 Nb5 $11) 19... b6) 19. Bf1 {[%emt 0:08:49] aiming for b5.} axb4 {[%emt 0:01:39]} 20. Qxb4 {[%emt 0:02:47]} (20. axb4 $14 Rxa1 21. Qxa1) 20... Ra5 {[%emt 0:03:00]} (20... bxc5 $11 {might be stronger.} 21. dxc5 Nc6) 21. Ne5 $14 {[%emt 0:03:15]} Bb7 {[%emt 0:02:36][%cal Bc8b7,Bb7c6,Bc6d5][%mdl 32]} 22. Rf4 {[%emt 0:04:11]} (22. Ree1 $14 Qe8 23. cxb6) 22... Nc6 $15 {[%emt 0:02:37]} 23. Nxc6 {[%emt 0:01:31]} Bxc6 {[%emt 0:00:05]} 24. Rc1 {[%emt 0:00:32]} Ra4 {[%emt 0:01:41]} 25. Qb3 {[%emt 0:02:26]} Rda8 $1 {[%emt 0:04:34] Strongly threatening ...g5.} 26. cxb6 {[%emt 0:01:14]} Bd5 {[%emt 0:00:24]} (26... Rxa3 27. Qc2 Bd5 28. bxc7 $16 (28. Qxc7 Ra1 $16)) 27. Qb5 {[%emt 0:02:06]} cxb6 {[%emt 0:02:53]} 28. Bg2 {[%emt 0:01:47]} Qxa3 {[%emt 0:03:25]} 29. Rc7 {[%emt 0:01:13]} Qf8 $2 {[%emt 0:03:53][%mdl 8192]} (29... Qa1+ $17 {stays on course.} 30. Bf1 R4a7 31. Rfxf7 Rxc7 32. Rxc7 Qxd4) 30. Bxd5 $18 {[%emt 0:00:16]} R4a5 {[%emt 0:00:46] [#]} 31. Qxb6 {[%emt 0:00:50]} Rxd5 $11 {[%emt 0:00:06]} 32. Qb7 {[%emt 0:00:30]} Rf5 {[%emt 0:00:55]} ({Much less strong is} 32... Ra1+ 33. Kg2 f5 34. Re7 $16) 33. Rxf5 {[%emt 0:00:21]} exf5 {[%emt 0:00:03][%mdl 4096] Endgame KQR-KQR} 34. d5 $36 {[%emt 0:00:36][%cal Od5d6][%mdl 2048] d6! is the strong threat. White has the initiative.} Qe8 $2 {[%emt 0:00:37][%mdl 8192] [#]} (34... Rb8 $11 35. Qa7 g6) 35. Re7 $2 {[%emt 0:00:23]} ({White has to play} 35. d6 $1 $18 {[%cal Rd6d7] Black must now prevent d7.} Rd8 36. Re7) 35... Qc8 $14 {[%emt 0:00:38]} 36. Rxf7 {[%emt 0:00:46] 0x0.001991cc2f2fdp-1022s more active pieces.} Qxb7 {[%emt 0:00:12]} 37. Rxb7 {[%emt 0:00:01] KR-KR} Rd8 {[%emt 0:00:38] Prevents Rd7.} 38. Rb5 {[%emt 0:00:19]} Kf7 {[%emt 0:00:27]} 39. Kg2 {[%emt 0:00:41]} Kf6 {[%emt 0:00:41]} 40. f4 {[%emt 0:00:28]} (40. Kf3 $14) 40... h6 {[%emt 0:00:41]} (40... Ra8 $11 {keeps the balance.}) 41. Kf2 {[%emt 0:03:04]} ({Better is} 41. Kf3 $16) 41... Re8 $11 {[%emt 0:11:23]} 42. Rb3 {[%emt 0:03:14]} Re4 $1 {[%emt 0:02:02]} 43. Rd3 {[%emt 0:02:00]} Ke7 {[%emt 0:12:43]} 44. d6+ {[%emt 0:21:07]} Kd7 {[%emt 0:00:07] The position is equal.} 45. Rd5 {[%emt 0:00:34]} g6 {[%emt 0:00:26]} 46. Kf3 {[%emt 0:02:38]} Re6 {[%emt 0:00:52]} 47. Ra5 {[%emt 0:00:27] Weighted Error Value: White=0.57/Black=0.46} 1/2-1/2

[Event "AUT Bundesliga Women 2021-22"]
[Site "Austria"]
[Date "2022.04.22"]
[Round "8.14"]
[White "Konecny, Sophie"]
[Black "Frey, Alisa"]
[Result "1-0"]
[ECO "C55"]
[WhiteElo "1833"]
[BlackElo "2018"]
[Annotator "TA"]
[PlyCount "113"]
[EventDate "2021.11.06"]
[EventType "team-tourn"]
[EventCountry "AUT"]
[SourceTitle "playchess.com"]
[Source "ChessBase"]
[SourceQuality "1"]
[TimeControl "40/5400+30:1800+30"]

{[%evp 19,113,18,16,12,19,10,12,-1,14,0,0,0,47,33,36,21,143,77,114,54,69,39,44,39,61,65,52,36,187,191,175,181,348,335,366,348,410,248,337,308,362,311,323,310,317,317,317,316,310,311,305,300,298,235,330,320,303,283,295,277,291,275,352,338,352,312,321,307,330,347,343,309,466,466,683,709,845,748,821,825,802,795,29985,29986,29988,29989,29989,29990,29990,29991,29991,29992,29992,29993,29993,29994]} 1. e4 {[%emt 0:00:03]} e5 {[%emt 0:00:05]} 2. Nf3 {[%emt 0:00:04]} Nc6 {[%emt 0:00:06]} 3. Bc4 {[%emt 0:00:05]} Nf6 {[%emt 0:00:47]} 4. d3 {[%emt 0:00:14]} Be7 {[%emt 0:00:10]} 5. c3 {[%emt 0:01:13]} d6 {[%emt 0:02:00]} 6. Bb3 {[%emt 0:02:26]} O-O {[%emt 0:00:28]} 7. O-O {[%emt 0:01:04]} Na5 {[%emt 0:00:18]} 8. Bc2 {[%emt 0:02:16]} c5 {[%emt 0:00:08]} 9. Re1 {[%emt 0:05:08] is the legacy move (9.h3).} Nc6 {[%emt 0:01:54]} 10. Nbd2 {[%emt 0:02:41][%cal Bb1d2,Bd2f1,Bf1g3][%mdl 32]} Re8 {[%emt 0:01:09]} 11. Nf1 {[%emt 0:02:28] C55: Two Knights: 4 d3, 4 d4 exd4 5 e5 and Max Lange Attack.} h6 {[%emt 0:03:25]} 12. h3 {[%emt 0:02:29]} Bf8 {[%emt 0:01:15]} 13. Ng3 {[%emt 0:03:48] The position is equal.} Qc7 {[%emt 0:05:49]} 14. Nh4 {[%emt 0:05:39]} d5 {[%emt 0:06:39]} 15. Qf3 {[%emt 0:02:30]} dxe4 {[%emt 0:07:24] [#]} (15... Qd8 $11 {was preferrable.}) 16. dxe4 $146 {[%emt 0:06:50][%cal Oc1h6]} ({Predecessor:} 16. Nxe4 Nxe4 17. Qxe4 Qd7 18. d4 f5 19. Nxf5 Qxf5 20. Qxf5 Bxf5 21. Bxf5 exd4 22. Bd2 dxc3 23. Bxc3 Nd4 {½-½ (23) Russo,B (1984)-Dumont,A (2145) Charleroi 2008}) 16... Nh7 {[%emt 0:04:23]} 17. Nhf5 {[%emt 0:03:56]} Ng5 {[%emt 0:05:13]} (17... Be6 $11) 18. Qh5 {[%emt 0:04:05]} ({White should play} 18. Qg4) 18... Qd8 {[%emt 0:07:24]} 19. h4 {[%emt 0:05:02]} (19. Rd1 $16 Qf6 20. Be3) 19... Nh7 $1 $14 {[%emt 0:04:04]} 20. Qf3 {[%emt 0:06:49] White is more active.} Be6 {[%emt 0:04:49]} 21. Rd1 $36 {[%emt 0:03:29][%mdl 2048] White has good play.} Qf6 {[%emt 0:01:28]} 22. Nh5 {[%emt 0:03:45]} Qg6 {[%emt 0:00:43]} 23. Kh1 {[%emt 0:05:12]} Nf6 $2 {[%emt 0:02:49] [#] A mistake that costs the game.} (23... Red8 $14) 24. Nxh6+ $1 $18 {[%emt 0:04:24][%mdl 512]} Kh8 {[%emt 0:05:32]} 25. Nxf6 {[%emt 0:02:19]} gxf6 {[%emt 0:00:10] [#]} (25... Qxf6 {was necessary.} 26. Qxf6 gxf6) 26. h5 $1 {[%emt 0:03:29]} Qh7 {[%emt 0:02:20]} (26... Qg7 27. Nf5) 27. Qxf6+ {[%emt 0:03:44]} Bg7 {[%emt 0:01:11]} 28. Qg5 {[%emt 0:07:02] aiming for Nf5.} Ne7 {[%emt 0:06:39]} 29. Nf5 {[%emt 0:02:59]} Ng8 {[%emt 0:04:57]} 30. Nxg7 {[%emt 0:05:23]} Qxg7 {[%emt 0:00:07]} 31. Rd3 {[%emt 0:00:49]} f6 {[%emt 0:10:08]} 32. Qxg7+ {[%emt 0:01:47]} Kxg7 {[%emt 0:00:06]} 33. Rg3+ {[%emt 0:00:55]} Kh7 {[%emt 0:00:11]} 34. Be3 {[%emt 0:00:58]} b6 {[%emt 0:00:39]} 35. b3 {[%emt 0:00:37]} Rad8 {[%emt 0:00:25]} 36. f4 {[%emt 0:01:00][%cal Bf2f4,Bf4f5][%mdl 32]} Rf8 {[%emt 0:06:22]} (36... Nh6 $142 37. f5 Bf7) 37. f5 {[%emt 0:01:04]} Bc8 {[%emt 0:01:06]} 38. Rf1 {[%emt 0:00:38]} Ne7 {[%emt 0:03:56]} 39. Kh2 {[%emt 0:00:48]} Bb7 {[%emt 0:01:49]} 40. Rff3 {[%emt 0:00:26]} Rg8 {[%emt 0:01:17]} 41. Rxg8 {[%emt 0:03:22]} Nxg8 {[%emt 0:01:43]} 42. g4 {[%emt 0:01:33]} Nh6 {[%emt 0:06:24]} 43. Kh3 {[%emt 0:01:32]} Nf7 {[%emt 0:01:23]} 44. Kh4 {[%emt 0:01:48]} Rg8 {[%emt 0:04:08]} 45. Bc1 {[%emt 0:03:13]} Ng5 {[%emt 0:06:25]} (45... Bc6 {might work better.} 46. Rd3 Rg7) 46. Bxg5 {[%emt 0:04:12]} Rxg5 {[%emt 0:02:12][%mdl 4096] Endgame KRB-KRB} (46... fxg5+ $142 47. Kg3 Rd8) 47. Rd3 {[%emt 0:02:05] Strongly threatening Rd6.} Rg7 {[%emt 0:00:25]} 48. Rd6 {[%emt 0:00:45]} Rf7 {[%emt 0:00:07]} 49. g5 {[%emt 0:01:25]} fxg5+ {[%emt 0:00:45]} 50. Kxg5 {[%emt 0:00:51]} Bc8 {[%emt 0:03:30]} 51. Bd3 {[%emt 0:03:45] White mates.} Kg7 {[%emt 0:01:36]} 52. f6+ {[%emt 0:01:44]} Kh7 {[%emt 0:00:45]} 53. Bc4 {[%emt 0:00:14]} Rf8 {[%emt 0:00:43]} 54. f7 {[%emt 0:00:23]} Bb7 {[%emt 0:00:32]} 55. Rh6+ {[%emt 0:00:16]} Kg7 {[%emt 0:00:09]} 56. Rg6+ {[%emt 0:00:05]} Kh7 {[%emt 0:00:04]} 57. Rg8 {[%emt 0:00:03] Weighted Error Value: White=0.18 (very precise) /Black=0.53} 1-0

[Event "AUT Bundesliga Women 2021-22"]
[Site "Austria"]
[Date "2022.04.22"]
[Round "8.15"]
[White "Katter, Marlene"]
[Black "Wu, Min"]
[Result "1-0"]
[ECO "A45"]
[WhiteElo "1800"]
[BlackElo "1939"]
[Annotator "TA"]
[PlyCount "97"]
[EventDate "2021.11.06"]
[EventType "team-tourn"]
[EventCountry "AUT"]
[SourceTitle "playchess.com"]
[Source "ChessBase"]
[SourceQuality "1"]
[TimeControl "40/5400+30:1800+30"]

{[%evp 15,97,-3,2,-14,24,21,44,49,70,-12,0,-18,-22,-18,-16,-20,-20,-14,-14,-17,-21,-12,62,60,68,65,183,200,169,176,313,292,287,210,272,271,278,268,260,268,250,210,229,238,527,516,479,408,462,384,441,433,508,476,530,495,630,518,550,346,517,483,821,495,453,381,697,687,614,539,660,661,652,559,480,421,422,405,1208,401,29993,29994,29994,29995]} 1. d4 {[%emt 0:00:07]} Nf6 {[%emt 0:00:06]} 2. Bf4 {[%emt 0:00:12]} d5 {[%emt 0:00:54]} 3. e3 {[%emt 0:00:19]} c5 {[%emt 0:00:30]} 4. c3 {[%emt 0:00:18]} e6 {[%emt 0:00:55]} 5. Nf3 {[%emt 0:00:34]} Nc6 {[%emt 0:03:45]} 6. Nbd2 {[%emt 0:01:18]} Bd6 {[%emt 0:02:29]} 7. Bg3 {[%emt 0:04:15]} O-O {[%emt 0:02:30]} 8. Bd3 {[%emt 0:01:19]} b6 {[%emt 0:02:37]} 9. Qe2 $1 {[%emt 0:01:50][%mdl 4] now scores much better than the old 9.Ne5. D02: 1 d4 d5 2 Nf3 sidelines, including 2...Nf6 3 g3 and 2...Nf6 3 Bf4.} Qc7 {[%emt 0:17:01]} 10. e4 {[%emt 0:08:02]} dxe4 {[%emt 0:03:53]} 11. Nxe4 {[%emt 0:01:50] White is slightly better.} Nxe4 {[%emt 0:00:24]} 12. Qxe4 {[%emt 0:05:26]} (12. Bxe4 $14 f5 13. Bxd6 Qxd6 14. dxc5 $1 Qxc5 15. Bc2) 12... f5 $11 {[%emt 0:06:26]} 13. Qh4 {[%emt 0:09:15]} cxd4 $1 {[%emt 0:12:46] [#]} 14. Nxd4 $146 {[%emt 0:04:32]} ({Predecessor:} 14. cxd4 Nb4 15. Rd1 Nxd3+ 16. Rxd3 Qc1+ 17. Rd1 Bb4+ 18. Nd2 Bxd2+ 19. Ke2 Ba6+ 20. Kf3 Qc6+ 21. d5 Qxd5+ 22. Qe4 Qxe4# {0-1 (22) Batsiashvili,N (2457)-Charochkina,D (2356) Chess.com INT 2020}) 14... Nxd4 {[%emt 0:03:56]} 15. Qxd4 {[%emt 0:02:37]} Rd8 {[%emt 0:05:43] White must now prevent ...Bxg3.} 16. Bxd6 {[%emt 0:06:24]} Rxd6 {[%emt 0:05:15]} 17. Qe3 {[%emt 0:02:26][%cal Od3f5]} Bb7 {[%emt 0:02:52]} 18. f3 {[%emt 0:02:56]} Qd8 {[%emt 0:05:39]} (18... Bd5 $11) 19. O-O-O $14 {[%emt 0:03:23]} Qf6 {[%emt 0:10:33]} 20. Bc4 {[%emt 0:02:46]} Rxd1+ {[%emt 0:05:00] Black is on the road to losing.} (20... Bd5 $14) 21. Rxd1 $18 {[%emt 0:00:47][%cal Bh1d1,Bd1d7,Bd7a7,Ba7b7,Bb7b6][%mdl 32]} Re8 {[%emt 0:00:34]} 22. Rd7 {[%emt 0:02:05]} Bc8 {[%emt 0:05:35]} (22... f4 $142 23. Qe1 Re7) 23. Rxa7 {[%emt 0:02:48]} Kh8 {[%emt 0:01:49]} 24. Ba6 {[%emt 0:03:29]} e5 {[%emt 0:00:36] [#]} 25. Bxc8 {[%emt 0:01:23]} Rxc8 {[%emt 0:00:03][%mdl 4096] Endgame KQR-KQR} 26. Rb7 {[%emt 0:01:51]} e4 {[%emt 0:00:47]} 27. Rxb6 {[%emt 0:04:08]} Qf7 {[%emt 0:00:31]} 28. Kb1 {[%emt 0:02:37]} ({Don't take} 28. fxe4 $6 fxe4 29. Kc2 (29. Qxe4 $2 Qf1+ 30. Kc2 Qf2+ 31. Kb1 Qf1+ 32. Kc2 Qf2+ 33. Kb1 Qxb6 $19) 29... Qc4) 28... Rd8 {[%emt 0:00:44]} 29. Rb4 {[%emt 0:02:11] Inhibits Qc4.} Qd5 $2 {[%emt 0:00:32]} (29... Re8 {was necessary.} 30. Rd4 (30. fxe4 fxe4 31. Kc2 Kg8 $16) 30... h6) 30. Rd4 {[%emt 0:00:56]} Qa8 {[%emt 0:00:29]} 31. Rxd8+ {[%emt 0:00:34]} Qxd8 {[%emt 0:00:00] KQ-KQ} 32. Kc2 {[%emt 0:01:07] Inhibits Qd1+.} Qa5 {[%emt 0:01:01]} 33. Qd4 {[%emt 0:03:21] Inhibits Qa4+.} exf3 {[%emt 0:00:26]} 34. gxf3 {[%emt 0:00:08]} h6 {[%emt 0:00:24]} 35. a4 {[%emt 0:00:59]} Qa6 {[%emt 0:00:29]} 36. Kb3 {[%emt 0:01:35]} Qb7+ {[%emt 0:00:26]} 37. Qb4 {[%emt 0:02:37]} Qxf3 {[%emt 0:00:25]} (37... Qd5+ {is a better defense.} 38. Ka3 Qxf3) 38. a5 {[%emt 0:00:59]} Qf1 {[%emt 0:00:39]} (38... Qd1+ $142 39. Ka2 Qd7) 39. Qc4 {[%emt 0:01:24]} Qd1+ {[%emt 0:00:17]} 40. Ka2 {[%emt 0:00:22]} Qd8 $2 {[%emt 0:00:52]} (40... f4 41. Qxf4 Qd5+ 42. b3 Qxa5+ 43. Kb2 Qh5) 41. a6 {[%emt 0:31:21] Strongly threatening Qc5.} Qa5+ {[%emt 0:14:47]} 42. Kb3 {[%emt 0:00:00]} Qb6+ {[%emt 0:01:33]} 43. Ka3 {[%emt 0:00:00] Hoping for Qc8+.} f4 {[%emt 0:04:56]} 44. Qc8+ {[%emt 0:00:00]} Kh7 {[%emt 0:00:05]} 45. Qb7 {[%emt 0:00:00]} Qc5+ {[%emt 0:01:39]} 46. Kb3 {[%emt 0:00:00] Intending a7 and mate.} f3 {[%emt 0:01:38]} (46... Qf5 $142 47. a7 f3) 47. a7 {[%emt 0:00:00]} (47. Qe4+ $142 Kg8 48. Qa8+ Kh7 49. Qxf3 Qb5+ 50. Kc2) 47... f2 {[%emt 0:00:10]} (47... Qf5 $18 48. a8=Q f2) 48. Qe4+ {[%emt 0:00:00]} g6 {[%emt 0:00:29]} 49. Qb7+ {[%emt 0:00:00] Weighted Error Value: White=0.46/Black=0.61} 1-0

[Event "AUT Bundesliga Women 2021-22"]
[Site "Austria"]
[Date "2022.04.22"]
[Round "8.16"]
[White "Roeck, Vanessa"]
[Black "Wilfling, Sandra"]
[Result "1/2-1/2"]
[ECO "A48"]
[WhiteElo "1618"]
[BlackElo "1855"]
[Annotator "NA RC COMBH"]
[PlyCount "132"]
[EventDate "2021.11.06"]
[EventType "team-tourn"]
[EventCountry "AUT"]
[SourceTitle "playchess.com"]
[Source "ChessBase"]
[SourceQuality "1"]
[TimeControl "40/5400+30:1800+30"]

1. d4 {[%emt 0:00:03]} Nf6 {[%emt 0:00:02]} 2. Nf3 {[%emt 0:00:11]} g6 {[%emt 0:01:29]} 3. Bf4 {[%emt 0:00:23]} Bg7 {[%emt 0:00:05]} 4. e3 {[%emt 0:00:08]} d6 {[%emt 0:00:05]} 5. Be2 {[%emt 0:00:18]} O-O {[%emt 0:00:06]} 6. O-O {[%emt 0:00:55]} Nh5 {[%emt 0:00:53]} 7. c3 {[%emt 0:02:21]} Nd7 {[%emt 0:01:40]} 8. Nbd2 {[%emt 0:06:03]} Nxf4 {[%emt 0:04:59]} 9. exf4 {[%emt 0:00:11]} Nb6 {[%emt 0:02:07]} 10. Qb3 {[%emt 0:02:37]} Be6 {[%emt 0:04:41]} 11. c4 {[%emt 0:02:11]} c6 {[%emt 0:03:48]} 12. Rfe1 {[%emt 0:08:30]} Qc7 {[%emt 0:01:54]} 13. Qe3 {[%emt 0:06:43]} Rae8 {[%emt 0:04:38]} 14. b3 {[%emt 0:03:58]} Bg4 {[%emt 0:01:42]} 15. h3 {[%emt 0:02:04]} Bxf3 {[%emt 0:06:32]} 16. Nxf3 {[%emt 0:01:49]} Nd7 {[%emt 0:06:59]} 17. Rad1 {[%emt 0:03:20]} Qa5 {[%emt 0:01:44]} 18. Qd2 {[%emt 0:03:53]} Qxd2 {[%emt 0:02:04]} 19. Rxd2 {[%emt 0:00:03]} c5 {[%emt 0:00:31]} 20. Bd3 {[%emt 0:04:53]} cxd4 {[%emt 0:05:38]} 21. Be4 {[%emt 0:03:17]} e5 {[%emt 0:01:36]} 22. Bxb7 {[%emt 0:04:48]} Nc5 {[%emt 0:03:57]} 23. Bd5 {[%emt 0:04:41]} Bh6 {[%emt 0:00:53]} 24. Ng5 {[%emt 0:04:13]} a5 {[%emt 0:04:16]} 25. h4 {[%emt 0:05:45]} Kg7 {[%emt 0:00:37]} 26. g3 {[%emt 0:05:47]} f5 {[%emt 0:02:46]} 27. f3 {[%emt 0:07:27]} Re7 {[%emt 0:01:39]} 28. fxe5 {[%emt 0:00:59]} dxe5 {[%emt 0:00:11]} 29. f4 {[%emt 0:01:03]} e4 {[%emt 0:02:04]} 30. Rxd4 {[%emt 0:00:48]} Kf6 {[%emt 0:01:14]} 31. Bc6 {[%emt 0:03:57]} Rc7 {[%emt 0:05:38]} 32. Bd5 {[%emt 0:02:39]} Rb8 {[%emt 0:02:22]} 33. Re2 {[%emt 0:02:14]} Bf8 {[%emt 0:03:05]} 34. Bg8 {[%emt 0:03:35]} h6 {[%emt 0:02:34]} 35. Nh7+ {[%emt 0:00:24]} Rxh7 {[%emt 0:01:56]} 36. Bxh7 {[%emt 0:00:03]} Kg7 {[%emt 0:00:06]} 37. Bxg6 {[%emt 0:00:09]} Kxg6 {[%emt 0:00:07]} 38. Rd5 {[%emt 0:00:35]} a4 {[%emt 0:02:18]} 39. bxa4 {[%emt 0:00:26]} Nxa4 {[%emt 0:00:49]} 40. h5+ {[%emt 0:00:32]} Kf6 {[%emt 0:02:34]} 41. Rb5 {[%emt 0:30:33]} Rc8 {[%emt 0:33:00]} 42. Rc2 {[%emt 0:02:27]} Bc5+ {[%emt 0:03:24]} 43. Kf1 {[%emt 0:02:41]} Bd4 {[%emt 0:01:43]} 44. Ra5 {[%emt 0:01:32]} Nc5 {[%emt 0:03:25]} 45. a4 {[%emt 0:00:00]} Rc6 {[%emt 0:00:00]} 46. Ke2 {[%emt 0:00:00]} Nd3 47. Rd5 {[%emt 0:00:00]} Bf2 {[%emt 0:00:00]} 48. Rd8 {[%emt 0:00:00]} Bxg3 {[%emt 0:00:00]} 49. Rg8 {[%emt 0:00:00]} Nxf4+ {[%emt 0:00:00]} 50. Kf1 {[%emt 0:00:00]} Nxh5 {[%emt 0:00:00]} 51. a5 {[%emt 0:00:00]} Bc7 {[%emt 0:00:00]} 52. Rc8 {[%emt 0:00:00]} Rc5 {[%emt 0:00:00]} 53. a6 {[%emt 0:00:00]} Bb6 {[%emt 0:00:00]} 54. Rxc5 {[%emt 0:00:00]} Bxc5 {[%emt 0:00:00]} 55. Rh2 {[%emt 0:00:00]} Kg5 {[%emt 0:00:00]} 56. Ra2 {[%emt 0:00:00]} Ng3+ {[%emt 0:00:00]} 57. Ke1 {[%emt 0:00:00]} Kf4 {[%emt 0:00:00]} 58. a7 {[%emt 0:00:00]} Bxa7 {[%emt 0:00:00]} 59. Rxa7 {[%emt 0:00:00]} Ke5 {[%emt 0:00:00]} 60. Ra5+ {[%emt 0:00:00]} Kd6 {[%emt 0:00:18]} 61. Ra6+ {[%emt 0:00:00]} Kc5 {[%emt 0:00:04]} 62. Rxh6 {[%emt 0:00:00]} Kxc4 {[%emt 0:00:02]} 63. Rg6 {[%emt 0:00:00]} f4 {[%emt 0:01:18]} 64. Rg4 {[%emt 0:00:00]} Kd3 {[%emt 0:00:54]} 65. Rxf4 {[%emt 0:00:00]} e3 {[%emt 0:00:28]} 66. Rf3 {[%emt 0:00:26]} Ne4 {[%emt 0:00:30]} 1/2-1/2